bitfinex/quotes_ETHUSD_20241116
["timestamp","ask_amount","ask_price","bid_price","bid_amount"]
[1731777509068,3.06895445,3153.4,3152.8,3.17175]
[1731777509222,3.17132,3153.3,3152.6,3.17195]
[1731777509428,3.171,3153.6,3152.6,3.17195]
[1731777509671,3.17108,3153.5,3152.9,3.17168]
[1731777509868,3.17119,3153.4,3152.7,3.23529755]
[1731777510106,4.11205345,3153.6,3152.8,0.06342755]
[1731777510577,3.17074,3153.9,3152.6,0.01]
[1731777510877,3.06895445,3154.0,3153.4,3.1711]
[1731777511073,3.06895445,3154.0,3153.2,3.17131]
[1731777511074,3.06895445,3154.0,3153.5,3.17107]
[1731777511282,3.1704,3154.2,3153.5,0.06341791]
[1731777511480,3.1704,3154.2,3153.6,3.17097]
[1731777511678,3.17048,3154.1,3153.5,0.06341791]
[1731777511836,3.17075,3153.9,3153.2,3.17132]
[1731777512047,3.17075,3153.9,3153.3,3.17124]
[1731777513378,6.24020445,3153.4,3152.7,6.17185]
[1731777513519,3.79530045,3153.3,3152.7,6.17185]
[1731777513716,3.17128,3153.3,3152.7,6.17185]
[1731777513922,3.1711,3153.5,3152.9,3.17168]
[1731777514131,3.06895445,3153.7,3152.8,0.06342867]
[1731777514354,3.0711,3153.5,3152.8,3.23520867]
[1731777514659,3.0711,3153.5,3152.9,3.17167]
[1731777515374,6.23985445,3153.7,3152.9,3.17162]
[1731777515531,3.17105,3153.6,3152.9,3.17162]
[1731777516464,3.17105,3153.6,3153.0,0.06342318]
[1731777516769,3.17102,3153.6,3153.0,0.06342318]
[1731777516945,3.17127,3153.4,3152.7,3.17184]
[1731777517478,3.17134,3153.3,3152.7,3.17184]
[1731777518546,3.17138,3153.2,3152.5,6.17201]
[1731777518853,3.06895445,3153.1,3152.4,3.17217]
[1731777519099,3.17166,3153.0,3152.3,6.17228]
[1731777520096,3.6929879,3153.1,3152.0,3.17252]
[1731777520097,3.06895445,3152.5,3152.0,3.17252]
[1731777520658,11.93102,3153.6,3152.2,3.17237]
[1731777520659,6.24066445,3152.9,3152.2,3.17237]
[1731777520878,3.17187,3152.8,3152.2,3.17237]
[1731777521075,3.17189,3152.7,3152.0,3.17251]
[1731777521238,4.11314545,3152.7,3152.0,3.17251]
[1731777521438,3.17189,3152.7,3152.0,3.17251]
[1731777521848,3.17189,3152.7,3152.1,3.17248]
[1731777522034,6.24066445,3152.9,3152.2,3.17235]
[1731777522249,3.17178,3152.8,3152.2,3.17235]
[1731777523240,3.17179,3152.8,3152.2,3.17235]
[1731777523575,3.17179,3152.8,3152.3,0.37686908]
[1731777523797,6.24066445,3152.9,3152.3,0.37686908]
[1731777523943,7.18188089,3152.9,3152.3,3.17228]
[1731777524457,7.18188089,3152.9,3152.4,0.37722732]
[1731777524777,7.18188089,3152.9,3152.2,3.17235]
[1731777524986,7.18188089,3152.9,3152.3,0.37723315]
[1731777525169,7.18188089,3152.9,3152.4,0.37723315]
[1731777525343,7.18188089,3152.9,3152.2,3.17235]
[1731777525542,7.18188089,3152.9,3152.3,0.37756112]
[1731777525738,7.18188089,3152.9,3152.4,0.37756112]
[1731777526054,3.17179,3152.8,3152.0,3.17255]
[1731777526255,3.06895445,3152.9,3152.2,3.17231]
[1731777526445,3.06895445,3152.9,3152.3,3.17228]
[1731777526888,6.24065445,3152.9,3152.0,3.489795]
[1731777527042,3.1718,3152.8,3152.1,0.37792915]
[1731777527243,6.24065445,3152.9,3152.2,3.55028915]
[1731777527589,6.24065445,3152.9,3152.3,3.17228]
[1731777527879,6.24065445,3152.9,3152.4,0.37834508]
[1731777528086,6.24065445,3152.9,3152.5,0.37834508]
[1731777528241,6.24065445,3152.9,3152.6,0.37834508]
[1731777528441,6.24065445,3152.9,3152.7,0.37834508]
[1731777528642,6.24065445,3152.9,3152.3,3.12828]
[1731777529272,3.06895445,3152.9,3152.4,3.17213]
[1731777529618,3.06895445,3153.2,3152.6,3.17197]
[1731777530313,3.17121,3153.4,3152.8,3.17169]
[1731777530729,3.17131,3153.3,3152.6,3.17197]
[1731777530875,6.24033445,3153.2,3152.4,3.17218]
[1731777531082,6.24033445,3153.2,3152.4,6.34429]
[1731777531083,3.17151,3153.1,3152.4,6.34429]
[1731777531306,3.17151,3153.1,3152.4,3.17211]
[1731777531612,3.17151,3153.1,3152.5,3.17208]
[1731777531821,6.24033445,3153.2,3152.5,3.17208]
[1731777532115,4.11272445,3153.1,3152.5,3.17205]
[1731777532631,0.94118445,3153.1,3152.7,3.17187]
[1731777532816,3.06895445,3153.2,3152.5,3.17205]
[1731777532977,6.24037445,3153.2,3152.6,3.17195]
[1731777533378,3.06895445,3153.2,3152.7,3.1718]
[1731777534254,3.06895445,3153.2,3152.8,3.17177]
[1731777534451,6.24003445,3153.5,3152.9,3.17168]
[1731777534750,6.24004445,3153.5,3152.8,3.17171]
[1731777535217,6.24038445,3153.2,3152.5,3.17204]
[1731777535424,3.17163,3153.0,3152.4,3.17217]
[1731777535752,3.17163,3153.0,3152.2,3.17231]
[1731777535753,6.24065445,3152.9,3152.2,3.17231]
[1731777536046,6.24065445,3152.9,3152.0,3.0]
[1731777536047,3.17204,3152.6,3152.0,3.17254]
[1731777536205,3.06895445,3152.6,3151.9,3.17268]
[1731777536551,6.24101445,3152.6,3151.9,3.17268]
[1731777536845,3.17206,3152.6,3151.9,3.17268]
[1731777537148,3.17206,3152.6,3152.0,3.17258]
[1731777538614,3.06895445,3152.7,3151.9,0.06344543]
[1731777538957,3.06895445,3152.7,3152.1,3.17242]
[1731777539151,3.06895445,3152.7,3152.0,3.17258]
[1731777539152,3.06895445,3152.7,3152.2,3.17235]
[1731777539740,3.1718,3152.8,3152.2,3.17235]
[1731777540442,3.1718,3152.8,3152.3,3.17228]
[1731777541645,3.1718,3152.8,3152.1,3.17248]
[1731777542020,6.24057445,3153.0,3152.5,3.17207]
[1731777542369,0.62403844,3153.1,3152.5,3.17207]
[1731777542663,0.62403844,3153.1,3152.7,3.17185]
[1731777542814,3.06895445,3153.3,3152.7,3.17185]
[1731777543262,6.24023445,3153.3,3152.7,3.17185]
[1731777543819,3.06895445,3152.9,3152.1,0.3176]
[1731777544046,3.02,3153.5,3151.6,3.17295]
[1731777544047,3.06895445,3152.3,3151.6,3.17295]
[1731777544253,3.06895445,3152.0,3151.6,3.17295]
[1731777544960,3.06895445,3152.0,3151.7,3.17283]
[1731777545657,3.06895445,3152.0,3151.5,3.17304]
[1731777546219,3.06895445,3152.0,3151.5,3.17301]
[1731777546465,3.06895445,3152.0,3151.5,3.490311]
[1731777547222,3.06895445,3152.0,3151.5,3.17301]
[1731777547757,3.06895445,3152.0,3151.6,3.17298]
[1731777547960,3.06895445,3152.0,3151.5,3.17301]
[1731777548339,6.34495,3152.2,3151.5,3.17301]
[1731777548528,6.24145445,3152.1,3151.5,3.17301]
[1731777548725,3.06895445,3151.8,3151.4,3.17317]
[1731777548979,3.06895445,3151.8,3151.3,3.17326]
[1731777550623,3.06895445,3151.5,3150.8,3.17373]
[1731777550818,6.24205445,3151.5,3150.8,3.17373]
[1731777551062,3.06895445,3151.2,3150.6,3.17393]
[1731777552791,3.06895445,3151.2,3150.7,3.17379]
[1731777553076,3.06895445,3151.2,3149.6,3.17495]
[1731777553077,3.07895445,3150.9,3149.6,3.17495]
[1731777553369,3.17441,3150.2,3149.3,3.17528]
[1731777553664,3.17441,3150.2,3148.8,0.01]
[1731777553665,3.17412,3150.5,3149.6,3.17495]
[1731777553963,9.24294445,3150.7,3149.8,3.1748]
[1731777554163,9.24294445,3150.7,3149.9,3.23811665]
[1731777554164,6.24294445,3150.7,3149.9,3.23811665]
[1731777554529,3.17372,3150.9,3150.1,3.17442]
[1731777554729,3.17372,3150.9,3150.1,3.49821067]
[1731777555230,3.06895445,3151.0,3150.2,0.06348163]
[1731777555425,3.06895445,3151.0,3150.3,3.17422]
[1731777555735,6.24262445,3151.0,3150.3,3.17422]
[1731777556253,3.1737,3150.9,3150.3,3.17422]
[1731777557755,3.1737,3150.9,3150.1,3.17448]
[1731777558065,3.1737,3150.9,3150.3,3.17428]
[1731777558821,3.1737,3150.9,3150.0,6.17456]
[1731777558822,3.174,3150.6,3150.0,6.17456]
[1731777559033,3.174,3150.6,3150.0,3.0]
[1731777559253,3.06895445,3150.3,3149.6,3.17493]
[1731777559564,3.06895445,3150.3,3149.7,3.17488]
[1731777559862,3.17421,3150.4,3149.7,3.17488]
[1731777560072,3.17421,3150.4,3149.2,3.18534]
[1731777560222,3.17421,3150.4,3149.8,3.17473]
[1731777560629,6.24301445,3150.6,3149.8,3.17473]
[1731777561233,6.24301445,3150.6,3149.9,3.17469]
[1731777561752,6.24301445,3150.6,3149.7,3.17482]
[1731777561933,3.17411,3150.5,3149.7,3.17482]
[1731777562131,3.06895445,3150.6,3149.8,0.54034562]
[1731777562132,3.17427,3150.4,3149.8,0.54034562]
[1731777562626,3.17427,3150.4,3149.6,3.17492]
[1731777562948,3.17431,3150.3,3149.6,3.17492]
[1731777563359,3.17415,3150.5,3149.7,3.23838804]
[1731777563523,6.24298445,3150.6,3149.7,3.23838804]
[1731777563725,3.17415,3150.5,3149.8,3.1748]
[1731777563972,3.06895445,3150.9,3149.9,0.06348805]
[1731777564130,3.17366,3151.0,3150.2,3.17433]
[1731777564333,3.17352,3151.1,3150.1,3.0]
[1731777564568,3.1733,3151.3,3150.4,3.17416]
[1731777564777,3.1733,3151.3,3150.7,3.17389]
[1731777564936,6.34588,3151.7,3150.9,3.17361]
[1731777565263,3.06895445,3151.8,3150.7,0.32373585]
[1731777565264,3.17332,3151.3,3150.7,0.32373585]
[1731777565467,3.17332,3151.3,3150.3,3.01]
[1731777565468,3.17332,3151.3,3150.6,3.1739]
[1731777565678,3.17332,3151.3,3150.6,3.0]
[1731777565829,3.17332,3151.3,3150.5,3.0]
[1731777566032,6.24204445,3151.5,3150.8,3.17377]
[1731777566230,3.17296,3151.7,3150.8,3.17377]
[1731777566453,3.17296,3151.7,3151.0,3.17355]
[1731777566629,3.17285,3151.8,3151.1,3.17345]
[1731777567038,3.1729,3151.7,3151.1,6.3469]
[1731777567369,3.17282,3151.8,3151.1,3.17345]
[1731777570147,3.06895445,3151.8,3150.9,0.317377]
[1731777570349,3.06895445,3151.5,3151.0,0.23609033]
[1731777570564,3.17328,3151.4,3150.9,0.317377]
[1731777572170,3.17344,3151.2,3150.3,3.17426]
[1731777572380,3.17344,3151.2,3150.5,3.17402]
[1731777572381,6.24239445,3151.2,3150.5,3.17402]
[1731777572550,6.24239445,3151.2,3150.6,0.23635354]
[1731777572733,3.17363,3151.0,3150.6,0.23635354]
[1731777572937,3.17363,3151.0,3150.4,3.17419]
[1731777573134,6.24212445,3151.5,3150.7,3.17388]
[1731777573357,6.24212445,3151.5,3150.9,3.17363]
[1731777573557,6.24212445,3151.5,3150.8,0.29982924]
[1731777573558,3.17295,3151.7,3151.1,3.1734]
[1731777573940,3.06895445,3151.8,3151.2,3.17335]
[1731777574148,3.06895445,3151.8,3151.3,0.29994159]
[1731777574462,3.17271,3151.9,3151.3,3.23672947]
[1731777574784,3.17271,3151.9,3151.4,0.23654756]
[1731777574785,3.1728,3151.8,3151.4,0.23654756]
[1731777575072,3.1729,3151.7,3151.1,3.1734]
[1731777575580,3.17281,3151.8,3151.2,3.17332]
[1731777575873,3.17289,3151.7,3151.2,3.17332]
[1731777576234,6.24166445,3151.9,3151.2,3.17332]
[1731777576235,9.41442445,3151.9,3151.2,3.17332]
[1731777576766,3.17285,3151.8,3151.2,3.17332]
[1731777576971,3.06895445,3151.9,3150.5,3.0]
[1731777577285,3.06895445,3151.9,3150.6,6.47393]
[1731777577286,6.24225445,3151.3,3150.6,6.47393]
[1731777577785,3.1734,3151.2,3150.6,6.47393]
[1731777578170,3.06895445,3151.3,3150.7,3.17388]
[1731777578370,6.24224445,3151.3,3150.8,3.0]
[1731777578765,3.06895445,3151.3,3150.8,6.17372]
[1731777579199,3.06895445,3151.3,3150.8,3.0]
[1731777579397,6.24231445,3151.3,3150.8,3.0]
[1731777579694,3.17342,3151.2,3150.6,6.17398]
[1731777579859,3.17342,3151.2,3150.6,3.0]
[1731777580198,3.1735,3151.1,3150.5,3.17407]
[1731777580557,3.17342,3151.2,3150.5,3.17407]
[1731777580788,3.17342,3151.2,3150.2,0.55]
[1731777580789,3.17342,3151.2,3150.6,3.17397]
[1731777580957,3.17342,3151.2,3150.6,3.491367]
[1731777581354,3.06895445,3151.3,3150.7,3.17389]
[1731777581559,3.17342,3151.2,3150.6,0.317397]
[1731777581774,3.17361,3151.0,3150.6,0.317397]
[1731777581997,3.1739,3150.7,3150.3,3.0]
[1731777582203,3.17406,3150.6,3150.0,6.1746]
[1731777583224,3.17383,3150.8,3150.0,6.1746]
[1731777583498,3.17383,3150.8,3150.1,3.17443]
[1731777583677,3.17375,3150.9,3150.2,3.17437]
[1731777583874,3.174,3150.6,3150.0,6.1746]
[1731777584385,3.174,3150.6,3149.4,6.11607818]
[1731777584386,3.17432,3150.3,3149.6,3.17491]
[1731777584706,3.17412,3150.5,3149.7,0.38097743]
[1731777584862,3.17456,3150.1,3149.7,0.317491]
[1731777585218,3.17447,3150.2,3149.5,3.17503]
[1731777585497,3.17447,3150.2,3149.3,3.17524]
[1731777585498,3.17463,3150.0,3149.3,3.17524]
[1731777585703,3.17447,3150.2,3149.5,3.17504]
[1731777585857,3.17447,3150.2,3149.6,3.492504]
[1731777586058,3.17432,3150.3,3149.6,3.492504]
[1731777586255,6.24316445,3150.4,3149.6,3.492504]
[1731777586511,3.1744,3150.2,3149.6,3.492504]
[1731777587073,3.17451,3150.1,3149.6,0.317504]
[1731777587277,3.1744,3150.2,3149.7,0.3317504]
[1731777587661,6.24317445,3150.4,3149.7,0.3317504]
[1731777588002,3.17403,3150.6,3149.9,3.17464]
[1731777588300,3.1741,3150.5,3149.8,3.17473]
[1731777588484,3.1741,3150.5,3149.9,0.35064804]
[1731777588695,3.17403,3150.6,3149.9,0.35064804]
[1731777588900,3.17411,3150.5,3149.9,0.35064804]
[1731777589413,3.17411,3150.5,3149.9,3.52532804]
[1731777589791,3.17411,3150.5,3149.9,0.35064804]
[1731777590090,3.17403,3150.6,3150.0,0.3525368]
[1731777590091,3.1742,3150.4,3150.0,0.3525368]
[1731777592267,3.17403,3150.6,3150.1,0.06348454]
[1731777594719,3.1741,3150.5,3150.0,0.3525368]
[1731777594869,3.17403,3150.6,3150.0,0.3525368]
[1731777595075,3.17381,3150.8,3150.1,3.17444]
[1731777595271,6.3477,3150.8,3150.1,3.17444]
[1731777596174,3.17391,3150.7,3150.1,3.17444]
[1731777596372,6.24258445,3151.0,3150.4,3.17412]
[1731777596684,6.24258445,3151.0,3150.5,0.317412]
[1731777596885,6.34687,3151.2,3150.5,3.491482]
[1731777597110,3.1734,3151.2,3150.5,3.491482]
[1731777597711,3.1735,3151.1,3150.6,0.06347334]
[1731777600175,3.1734,3151.2,3150.6,0.06347334]
[1731777600384,3.17361,3151.0,3150.5,3.491482]
[1731777600593,3.1734,3151.2,3150.5,3.491482]
[1731777600788,3.1734,3151.2,3150.6,0.06347337]
[1731777601310,3.17322,3151.4,3150.7,3.17389]
[1731777601518,3.17322,3151.4,3150.8,0.06346929]
[1731777601691,3.17322,3151.4,3150.8,3.23719929]
[1731777602229,3.17322,3151.4,3150.8,0.06346929]
[1731777602432,3.17322,3151.4,3150.8,3.23717929]
[1731777602651,3.17322,3151.4,3150.9,3.67707408]
[1731777603231,6.24194445,3151.6,3150.9,3.67707408]
[1731777603391,3.17312,3151.5,3150.9,3.67707408]
[1731777603594,6.24194445,3151.6,3150.9,3.67707408]
[1731777603909,3.17335,3151.3,3150.9,0.50338408]
[1731777606992,3.06895445,3151.4,3150.0,3.01]
[1731777606993,3.17365,3151.0,3150.3,6.34852]
[1731777608391,3.17356,3151.1,3150.5,3.17401]
[1731777609304,3.17345,3151.2,3150.6,3.17391]
[1731777610239,11.91244,3152.2,3150.1,0.56]
[1731777610240,0.64230575,3152.0,3150.1,0.56]
[1731777610438,3.17285,3151.8,3151.2,3.17333]
[1731777611102,3.1729,3151.7,3151.1,0.06346296]
[1731777611774,3.06895445,3151.9,3151.1,0.06346296]
[1731777611775,6.24166445,3151.9,3151.3,3.17328]
[1731777612247,3.1728,3151.8,3151.1,0.06346296]
[1731777612430,3.17309,3151.6,3151.1,0.3237013]
[1731777612632,3.17309,3151.6,3150.8,3.17375]
[1731777612633,3.17309,3151.6,3150.9,3.0]
[1731777612983,3.17309,3151.6,3151.0,3.17358]
[1731777613130,3.17345,3151.2,3150.7,3.0]
[1731777613330,3.17345,3151.2,3150.6,3.17393]
[1731777613564,3.17351,3151.1,3150.7,0.317393]
[1731777614076,3.17376,3150.9,3150.0,3.17455]
[1731777614377,3.17429,3150.4,3149.8,3.17472]
[1731777614673,3.06895445,3150.4,3149.9,0.317472]
[1731777614832,3.17403,3150.6,3149.9,0.06348324]
[1731777615542,3.17416,3150.5,3149.9,6.23816324]
[1731777615758,3.17403,3150.6,3149.9,3.06348324]
[1731777615962,3.17403,3150.6,3150.0,3.17452]
[1731777616167,3.17403,3150.6,3149.9,3.0]
[1731777616341,3.17403,3150.6,3149.6,3.17495]
[1731777616342,3.1743,3150.3,3149.6,3.17492]
[1731777616687,3.17451,3150.1,3149.5,3.17507]
[1731777616835,3.17451,3150.1,3149.6,0.06349066]
[1731777617038,3.1743,3150.3,3149.7,0.32385607]
[1731777617039,6.34869,3150.3,3149.7,0.32385607]
[1731777617574,6.34869,3150.3,3149.7,3.32385607]
[1731777617746,3.1743,3150.3,3149.7,3.32385607]
[1731777617946,3.1743,3150.3,3149.7,6.49868607]
[1731777618148,3.1743,3150.3,3149.8,3.17479]
[1731777618366,3.17411,3150.5,3149.9,3.23810061]
[1731777618566,3.17388,3150.8,3150.1,3.17449]
[1731777618748,6.24254445,3151.0,3150.3,3.17421]
[1731777619089,6.24254445,3151.0,3150.4,3.17419]
[1731777619322,6.24254445,3151.0,3150.6,3.17395]
[1731777619323,3.06895445,3151.0,3150.6,3.17395]
[1731777619574,3.1735,3151.1,3150.4,3.17419]
[1731777619775,3.1736,3151.0,3150.4,3.17419]
[1731777620292,3.17342,3151.2,3150.5,3.17402]
[1731777621342,3.17349,3151.1,3150.5,3.17402]
[1731777621701,3.17349,3151.1,3150.6,3.17392]
[1731777622661,3.17341,3151.2,3150.6,3.17392]
[1731777623475,3.1736,3151.0,3150.4,0.32385607]
[1731777624197,3.06895445,3151.3,3150.7,3.17381]
[1731777624371,3.06895445,3151.3,3150.8,0.06346967]
[1731777624567,3.17327,3151.4,3150.8,0.06346967]
[1731777624774,3.17327,3151.4,3150.7,3.17381]
[1731777625412,6.34656,3151.4,3150.7,3.17381]
[1731777625705,3.06895445,3151.6,3150.8,0.06346956]
[1731777625706,3.17331,3151.3,3150.8,0.06346956]
[1731777625862,3.17331,3151.3,3150.8,3.23725956]
[1731777626198,3.17309,3151.5,3150.8,3.23725956]
[1731777626406,3.17309,3151.5,3150.9,3.17366]
[1731777626702,3.17292,3151.7,3150.9,3.17367]
[1731777626901,3.17292,3151.7,3151.0,0.317367]
[1731777627679,3.17292,3151.7,3151.1,3.17342]
[1731777628002,3.17292,3151.7,3151.0,0.317367]
[1731777628197,3.17292,3151.7,3150.9,3.17362]
[1731777628198,3.17313,3151.5,3150.9,3.17362]
[1731777628414,9.41445445,3151.9,3151.2,3.17337]
[1731777628719,3.17279,3151.8,3151.2,3.17337]
[1731777629870,3.17251,3152.1,3151.3,0.06346152]
[1731777630069,3.17251,3152.1,3151.5,3.17301]
[1731777630282,3.17251,3152.1,3151.5,6.34603]
[1731777630506,3.17251,3152.1,3151.5,3.17301]
[1731777630892,6.24135445,3152.2,3151.5,3.17301]
[1731777631803,3.17256,3152.1,3151.5,3.17301]
[1731777632113,3.17306,3151.6,3150.8,6.17377]
[1731777632262,3.17311,3151.5,3150.9,3.17368]
[1731777632457,0.06151776,3151.4,3150.9,3.17368]
[1731777632906,3.1733,3151.3,3150.7,3.17387]
[1731777633108,0.0614565,3151.2,3150.5,3.17402]
[1731777633262,3.2349165,3151.2,3150.5,3.491422]
[1731777633463,3.17354,3151.1,3150.5,3.491422]
[1731777633660,0.06136296,3151.0,3150.3,3.17422]
[1731777633907,3.17371,3150.9,3150.3,3.17422]
[1731777634072,0.06123622,3150.8,3150.3,3.17422]
[1731777634406,0.06123622,3150.8,3150.4,0.0634761]
[1731777635408,0.06123622,3150.8,3150.0,3.3176]
[1731777635409,0.06123622,3150.8,3150.7,3.17389]
[1731777635567,3.17319,3151.4,3150.7,3.17389]
[1731777635568,3.17319,3151.4,3150.7,6.5846872]
[1731777635769,3.17319,3151.4,3150.8,3.47421561]
[1731777635968,3.17319,3151.4,3150.8,3.17377]
[1731777636165,3.06895445,3151.6,3150.5,3.17405]
[1731777636369,3.17379,3150.9,3150.6,0.23696814]
[1731777636571,3.1737,3150.9,3150.3,3.0]
[1731777636790,3.1737,3150.9,3150.4,0.23699989]
[1731777637006,3.1737,3150.9,3150.5,0.2369944]
[1731777637180,3.1737,3150.9,3150.6,0.2369944]
[1731777637396,3.1737,3150.9,3150.4,0.23699989]
[1731777637697,3.17399,3150.6,3150.5,0.23699388]
[1731777637895,3.17399,3150.6,3150.4,0.23699989]
[1731777638293,0.94161745,3150.9,3150.4,0.23699989]
[1731777638606,3.17383,3150.8,3150.4,0.23699989]
[1731777638807,6.24259445,3151.0,3150.4,3.41118989]
[1731777639019,6.24259445,3151.0,3150.5,0.23696961]
[1731777639315,3.06895445,3151.3,3150.7,3.17388]
[1731777639509,3.17347,3151.2,3150.6,3.17396]
[1731777640573,3.17347,3151.2,3150.6,3.17395]
[1731777641323,3.17351,3151.1,3150.4,3.41111989]
[1731777641636,3.17351,3151.1,3150.5,0.23696751]
[1731777641860,3.1737,3150.9,3150.3,3.17422]
[1731777642124,0.06101067,3150.8,3150.4,3.41117463]
[1731777642278,0.06101067,3150.8,3150.5,0.23698463]
[1731777642481,0.06101067,3150.8,3150.4,3.17419]
[1731777642701,0.06101067,3150.8,3150.5,3.41106715]
[1731777642902,3.17351,3151.1,3150.5,3.17406]
[1731777643105,0.06107195,3151.0,3150.5,3.17406]
[1731777643272,0.06107195,3151.0,3150.5,6.34808]
[1731777643472,0.06107195,3151.0,3150.6,0.23700608]
[1731777643997,0.06107195,3151.0,3150.5,3.17402]
[1731777645306,3.17371,3150.9,3150.3,3.17424]
[1731777645506,0.06101067,3150.8,3150.3,3.17424]
[1731777645717,0.06101067,3150.8,3150.4,3.17416]
[1731777646077,3.1736,3151.0,3150.4,3.17416]
[1731777646315,0.06104131,3150.9,3150.4,3.17416]
[1731777647980,0.06104131,3150.9,3150.6,3.16394]
[1731777648521,0.06101067,3150.8,3150.6,3.16394]
[1731777648689,3.17345,3151.2,3150.6,3.16394]
[1731777649096,0.06110259,3151.1,3150.6,3.16394]
[1731777649624,3.1736,3151.0,3150.4,3.17412]
[1731777650127,0.06104131,3150.9,3150.4,3.17412]
[1731777651850,0.06104131,3150.9,3150.6,3.17398]
[1731777652053,0.06104131,3150.9,3150.8,3.17379]
[1731777652231,3.81054533,3151.4,3150.8,3.17379]
[1731777652416,0.06106071,3150.9,3150.8,3.17379]
[1731777652614,3.17302,3151.6,3151.0,3.1735]
[1731777652863,6.3461,3151.6,3151.0,3.1735]
[1731777653067,3.17302,3151.6,3151.0,3.1735]
[1731777653553,3.06895445,3151.9,3151.2,3.17336]
[1731777653738,3.17262,3152.0,3151.2,3.17336]
[1731777653915,3.79677745,3152.0,3151.3,3.17323]
[1731777654115,3.79677745,3152.0,3151.5,3.17306]
[1731777654352,3.79677745,3152.0,3151.4,3.17318]
[1731777656765,3.23208667,3151.9,3151.4,3.17318]
[1731777657353,3.17279,3151.8,3151.2,3.17334]
[1731777657782,0.05933543,3151.7,3151.2,3.17334]
[1731777657957,3.17309,3151.5,3150.8,3.17374]
[1731777658154,3.17331,3151.3,3150.7,0.3171]
[1731777658390,3.17331,3151.3,3150.7,3.38056659]
[1731777658581,0.05916663,3151.2,3150.7,3.38056659]
[1731777658762,0.05916663,3151.2,3150.7,6.55438659]
[1731777659492,3.23256663,3151.2,3150.7,0.38056659]
[1731777659669,0.05916663,3151.2,3150.6,3.17391]
[1731777659859,0.05916663,3151.2,3150.7,3.23733124]
[1731777660203,0.05916663,3151.2,3150.1,3.17442]
[1731777660204,3.17357,3151.1,3150.4,3.17411]
[1731777660713,0.05907859,3151.0,3150.9,3.17369]
[1731777660902,3.06895445,3151.9,3150.9,3.17369]
[1731777661193,3.17376,3150.9,3150.4,0.634511]
[1731777661494,3.17376,3150.9,3150.4,0.3171]
[1731777661695,0.05901732,3150.8,3150.4,0.189317]
[1731777661853,3.23284732,3150.8,3150.4,0.189317]
[1731777662298,0.05901732,3150.8,3150.4,0.189317]
[1731777662483,3.17373,3150.9,3150.4,0.189317]
[1731777662796,0.05901732,3150.8,3150.4,0.189317]
[1731777662989,3.23285732,3150.8,3150.4,0.189317]
[1731777663205,0.05901732,3150.8,3150.4,0.189317]
[1731777663698,0.05898668,3150.7,3150.4,3.363497]
[1731777663878,3.17375,3150.9,3150.4,3.363497]
[1731777664068,0.05901732,3150.8,3150.4,3.363497]
[1731777664507,0.05901732,3150.8,3150.5,0.06347516]
[1731777664995,0.05901732,3150.8,3150.5,3.23756516]
[1731777665296,3.17353,3151.1,3150.5,3.23756516]
[1731777665593,3.23267859,3151.0,3150.5,3.23756516]
[1731777666288,0.05907859,3151.0,3150.5,3.23750516]
[1731777666474,3.17362,3151.0,3150.5,3.23750516]
[1731777666655,0.05904796,3150.9,3150.5,0.06347516]
[1731777667101,0.05904796,3150.9,3150.4,3.363507]
[1731777667459,0.05904796,3150.9,3150.4,3.17419]
[1731777667902,0.05904796,3150.9,3150.5,0.0634752]
[1731777668210,0.05900442,3150.8,3150.5,0.0634752]
[1731777668558,3.17356,3151.1,3150.5,0.0634752]
[1731777668898,3.82684185,3151.1,3150.5,0.0634752]
[1731777669096,0.05906569,3151.0,3150.5,3.2375652]
[1731777669392,0.05906569,3151.0,3150.6,3.17399]
[1731777669595,0.05906569,3151.0,3150.7,3.23727522]
[1731777669801,0.05906569,3151.0,3150.9,6.17369]
[1731777670097,3.17289,3151.7,3151.1,3.17349]
[1731777670254,6.24168445,3151.9,3151.2,3.17337]
[1731777670460,3.1728,3151.8,3151.2,3.17337]
[1731777670655,6.24168445,3151.9,3151.1,3.17349]
[1731777670858,3.06895445,3151.6,3150.9,3.0]
[1731777671107,3.17292,3151.7,3150.9,3.0]
[1731777671108,3.17292,3151.7,3151.0,3.17358]
[1731777671454,3.17307,3151.6,3151.0,3.17358]
[1731777671659,0.05731088,3151.5,3151.0,3.17358]
[1731777671862,3.17336,3151.3,3150.9,3.0]
[1731777672060,0.05721899,3151.2,3150.6,6.17398]
[1731777672485,0.05721899,3151.2,3150.7,0.06347106]
[1731777672700,0.05721899,3151.2,3150.3,3.47427]
[1731777672899,3.17365,3151.0,3150.4,3.17418]
[1731777673102,0.0552444,3150.9,3150.4,3.17418]
[1731777673404,3.17355,3151.1,3150.4,3.17418]
[1731777673888,0.0552861,3151.0,3150.4,3.17418]
[1731777674258,3.1737,3150.9,3150.3,0.3]
[1731777674465,0.05522483,3150.8,3150.4,3.17417]
[1731777674776,3.17355,3151.1,3150.4,3.17417]
[1731777674976,0.05519419,3150.7,3150.4,3.17417]
[1731777675166,6.34713,3151.1,3150.5,0.06347524]
[1731777675366,0.05516354,3150.6,3150.5,0.06347524]
[1731777675590,3.17355,3151.1,3150.5,3.23756524]
[1731777675815,0.05516354,3150.6,3150.5,3.23756524]
[1731777676023,3.17361,3151.0,3150.5,3.23756524]
[1731777676197,0.05516354,3150.6,3150.5,3.23756524]
[1731777676379,3.17361,3151.0,3150.5,3.23756524]
[1731777676575,0.05516354,3150.6,3150.5,3.23756524]
[1731777676817,3.17361,3151.0,3150.5,3.23756524]
[1731777676990,0.05516354,3150.6,3150.5,3.23756524]
[1731777677324,0.05516354,3150.6,3150.3,6.17423]
[1731777677523,3.17366,3151.0,3150.4,3.17419]
[1731777677682,0.05525547,3150.9,3150.4,3.17419]
[1731777678086,3.17387,3150.8,3150.1,0.3171]
[1731777678382,3.55190702,3150.9,3149.9,3.0]
[1731777678383,3.1742,3150.4,3149.9,3.0]
[1731777678613,3.1742,3150.4,3149.9,3.06347722]
[1731777678827,0.05505223,3150.3,3149.9,3.06347722]
[1731777679026,0.05505223,3150.3,3149.8,3.17479]